fUSD/lending_fUSD_20241215
["ID","MTS","AMOUNT","RATE_DAILY","PERIOD"]
[345397424,1734233458789,-2582.29,0.00013998,2]
[345397425,1734233458798,-2582.29,0.00013998,2]
[345397426,1734233458808,-500.0,0.00013998,2]
[345397427,1734233458819,-150.0,0.00013998,2]
[345397428,1734233458830,-2917.0,0.00013998,2]
[345397429,1734233458840,-580.94,0.00013998,2]
[345397430,1734233458850,-580.94,0.00013998,2]
[345397431,1734233458859,-580.94,0.00013998,2]
[345397432,1734233458870,-580.94,0.00013998,2]
[345397433,1734233458880,-580.94,0.00013998,2]
[345397434,1734233458890,-1186.0,0.00013998,2]
[345397435,1734233458902,-8942.94,0.00013998,2]
[345397436,1734233458912,-500.0,0.00013998,2]
[345397437,1734233458922,-8942.94,0.00013998,2]
[345397438,1734233458932,-8942.94,0.00013998,2]
[345397439,1734233458941,-8942.94,0.00013998,2]
[345397440,1734233458951,-500.0,0.00013998,2]
[345397441,1734233458961,-8942.94,0.00013998,2]
[345397442,1734233458971,-500.0,0.00013998,2]
[345397443,1734233458982,-3250.31,0.00013998,2]
[345397444,1734233458992,-500.0,0.00013998,2]
[345397445,1734233459001,-3250.31,0.00013998,2]
[345397446,1734233459011,-500.0,0.00013998,2]
[345397447,1734233459021,-3250.31,0.00013998,2]
[345397448,1734233459031,-3250.31,0.00013998,2]
[345397449,1734233459040,-3250.31,0.00013998,2]
[345397450,1734233459050,-3250.31,0.00013998,2]
[345397451,1734233459060,-593.79663589,0.00013999,2]
[345397452,1734233459071,-30000.0,0.00013999,2]
[345397453,1734233459086,-1000.0,0.00013999,2]
[345397454,1734233459096,-151.0,0.00013999,2]
[345397455,1734233459106,-151.0,0.00013999,2]
[345397456,1734233459116,-151.0,0.00013999,2]
[345397457,1734233459126,-151.0,0.00013999,2]
[345397458,1734233459135,-151.0,0.00013999,2]
[345397459,1734233459145,-151.0,0.00013999,2]
[345397460,1734233459156,-151.0,0.00013999,2]
[345397461,1734233459166,-151.0,0.00013999,2]
[345397462,1734233459176,-151.0,0.00013999,2]
[345397463,1734233459185,-151.0,0.00013999,2]
[345397464,1734233459195,-151.0,0.00013999,2]
[345397465,1734233459205,-151.0,0.00013999,2]
[345397466,1734233459215,-151.0,0.00013999,2]
[345397467,1734233459226,-151.0,0.00013999,2]
[345397468,1734233459236,-151.0,0.00013999,2]
[345397469,1734233459245,-151.0,0.00013999,2]
[345397470,1734233459255,-151.0,0.00013999,2]
[345397471,1734233459266,-151.0,0.00013999,2]
[345397472,1734233459276,-151.0,0.00013999,2]
[345397473,1734233459285,-151.0,0.00013999,2]
[345397474,1734233459295,-151.0,0.00013999,2]
[345397475,1734233459307,-151.0,0.00013999,2]
[345397476,1734233459317,-151.0,0.00013999,2]
[345397477,1734233459327,-151.0,0.00013999,2]
[345397478,1734233459337,-151.0,0.00013999,2]
[345397479,1734233459347,-151.0,0.00013999,2]
[345397480,1734233459357,-204.83804,0.00013999,2]
[345397481,1734233459367,-902.8,0.00013999,2]
[345397482,1734233459376,-902.8,0.00013999,2]
[345397483,1734233459387,-902.8,0.00013999,2]
[345397484,1734233459396,-902.8,0.00013999,2]
[345397485,1734233459406,-902.8,0.00013999,2]
[345397486,1734233459416,-902.8,0.00013999,2]
[345397487,1734233459426,-902.8,0.00013999,2]
[345397488,1734233459435,-902.8,0.00013999,2]
[345397489,1734233459446,-902.8,0.00013999,2]
[345397490,1734233459455,-902.8,0.00013999,2]
[345397491,1734233459465,-902.8,0.00013999,2]
[345397492,1734233459476,-902.8,0.00013999,2]
[345397493,1734233459486,-902.8,0.00013999,2]
[345397494,1734233459495,-902.8,0.00013999,2]
[345397495,1734233459505,-902.8,0.00013999,2]
[345397496,1734233459515,-902.8,0.00013999,2]
[345397497,1734233459524,-902.8,0.00013999,2]
[345397498,1734233459536,-903.01918173,0.00013999,2]
[345397499,1734233459546,-151.0,0.00013999,2]
[345397500,1734233459556,-151.0,0.00013999,2]
[345397501,1734233459580,-151.0,0.00013999,2]
[345397502,1734233459598,-151.0,0.00013999,2]
[345397503,1734233459615,-151.0,0.00013999,2]
[345397504,1734233459634,-151.0,0.00013999,2]
[345397505,1734233459653,-151.0,0.00013999,2]
[345397506,1734233459669,-151.0,0.00013999,2]
[345397507,1734233459686,-220.66648,0.00013999,2]
[345397508,1734233459703,-220.66648,0.00013999,2]
[345397509,1734233459721,-220.66648,0.00013999,2]
[345397510,1734233459740,-220.66648,0.00013999,2]
[345397511,1734233459759,-220.66648,0.00013999,2]
[345397512,1734233459775,-220.66648,0.00013999,2]
[345397513,1734233459794,-220.66648,0.00013999,2]
[345397514,1734233459812,-220.66648,0.00013999,2]
[345397515,1734233459829,-151.0,0.00013999,2]
[345397516,1734233459845,-151.0,0.00013999,2]
[345397517,1734233459863,-220.66648,0.00013999,2]
[345397518,1734233459878,-151.0,0.00013999,2]
[345397519,1734233459891,-220.66648,0.00013999,2]
[345397520,1734233459909,-151.0,0.00013999,2]
[345397521,1734233459924,-272.40371,0.00013999,2]
[345397522,1734233459936,-589.67787748,0.00013999,2]
[345397523,1734233459951,-151.384284,0.00013999,2]
[345397524,1734233459969,-500.0,0.00013999,2]
[345397525,1734233459986,-217.99076431,0.00013999,2]
[345397526,1734233459998,-406.630126,0.00013999,2]
[345397527,1734233460013,-406.630126,0.00013999,2]
[345397528,1734233460029,-406.630126,0.00013999,2]
[345397529,1734233460044,-406.630126,0.00013999,2]
[345397530,1734233460059,-406.630126,0.00013999,2]
[345397531,1734233460076,-406.630126,0.00013999,2]
[345397532,1734233460092,-406.630126,0.00013999,2]
[345397533,1734233460107,-406.630126,0.00013999,2]
[345397534,1734233460123,-406.630126,0.00013999,2]
[345397535,1734233460139,-406.630127,0.00013999,2]
[345397536,1734233460153,-500.0,0.00013999,2]
[345397537,1734233460167,-500.0,0.00013999,2]
[345397538,1734233460182,-500.0,0.00013999,2]
[345397539,1734233460196,-500.0,0.00013999,2]
[345397540,1734233460210,-500.0,0.00013999,2]
[345397541,1734233460227,-500.0,0.00013999,2]
[345397542,1734233460242,-500.0,0.00013999,2]
[345397543,1734233460257,-500.0,0.00013999,2]
[345397544,1734233460271,-500.0,0.00013999,2]
[345397545,1734233460286,-500.0,0.00013999,2]
[345397546,1734233460301,-500.0,0.00013999,2]
[345397547,1734233460316,-500.0,0.00013999,2]
[345397548,1734233460329,-500.0,0.00013999,2]
[345397549,1734233460344,-500.0,0.00013999,2]
[345397550,1734233460358,-500.0,0.00013999,2]
[345397551,1734233460372,-500.0,0.00013999,2]
[345397552,1734233460386,-160.91372967,0.00013999,2]
[345397553,1734233460402,-4113.7,0.00013999,2]
[345397554,1734233460416,-4113.7,0.00013999,2]
[345397555,1734233460432,-4113.7,0.00013999,2]
[345397556,1734233460447,-4113.7,0.00013999,2]
[345397557,1734233460462,-4113.7,0.00013999,2]
[345397558,1734233460476,-4113.7,0.00013999,2]
[345397559,1734233460492,-4113.7,0.00013999,2]
[345397560,1734233460506,-4113.7,0.00013999,2]
[345397561,1734233460522,-4113.7,0.00013999,2]
[345397562,1734233460536,-4113.7,0.00013999,2]
[345397563,1734233460550,-4113.7,0.00013999,2]
[345397564,1734233460565,-310.632852,0.00013999,2]
[345397565,1734233460582,-4113.7,0.00013999,2]
[345397566,1734233460597,-310.632852,0.00013999,2]
[345397567,1734233460610,-4113.84433983,0.00013999,2]
[345397568,1734233460626,-310.632852,0.00013999,2]
[345397569,1734233460641,-310.632852,0.00013999,2]
[345397570,1734233460656,-310.632852,0.00013999,2]
[345397571,1734233460672,-310.632852,0.00013999,2]
[345397572,1734233460687,-310.632852,0.00013999,2]
[345397573,1734233460703,-310.632852,0.00013999,2]
[345397574,1734233460718,-310.632852,0.00013999,2]
[345397575,1734233460733,-310.632856,0.00013999,2]
[345397576,1734233460748,-500.0,0.00013999,2]
[345397577,1734233460763,-500.0,0.00013999,2]
[345397578,1734233460779,-152.940691,0.00013999,2]
[345397579,1734233460794,-500.0,0.00013999,2]
[345397580,1734233460810,-500.0,0.00013999,2]
[345397581,1734233460825,-500.0,0.00013999,2]
[345397582,1734233460841,-500.0,0.00013999,2]
[345397583,1734233460856,-500.0,0.00013999,2]
[345397584,1734233460870,-500.0,0.00013999,2]
[345397585,1734233460886,-619.78,0.00013999,2]
[345397586,1734233460902,-500.0,0.00013999,2]
[345397587,1734233460918,-500.0,0.00013999,2]
[345397588,1734233460934,-500.0,0.00013999,2]
[345397589,1734233460950,-500.0,0.00013999,2]
[345397590,1734233460965,-243.44,0.00013999,2]
[345397591,1734233460976,-151.0,0.00013999,2]
[345397592,1734233461174,-151.0,0.00013999,2]
[345397593,1734233461200,-290.389432,0.00013999,2]
[345397594,1734233461210,-500.0,0.00013999,2]
[345397595,1734233461221,-500.0,0.00013999,2]
[345397596,1734233461236,-500.0,0.00013999,2]
[345397597,1734233461245,-500.0,0.00013999,2]
[345397598,1734233461255,-500.0,0.00013999,2]
[345397599,1734233461264,-500.0,0.00013999,2]
[345397600,1734233461274,-500.0,0.00013999,2]
[345397601,1734233461283,-500.0,0.00013999,2]
[345397602,1734233461293,-500.0,0.00013999,2]
[345397603,1734233461303,-500.0,0.00013999,2]
[345397604,1734233461313,-564.51762281,0.00013999,2]
[345397605,1734233461322,-500.0,0.00013999,2]
[345397606,1734233461331,-500.0,0.00013999,2]
[345397607,1734233461342,-500.0,0.00013999,2]
[345397608,1734233461351,-500.0,0.00013999,2]
[345397609,1734233461362,-567.83815355,0.00013999,2]
[345397610,1734233461371,-200.5915612,0.00013999,2]
[345397611,1734233461381,-500.0,0.00013999,2]
[345397612,1734233461391,-500.0,0.00013999,2]
[345397613,1734233461401,-500.0,0.00013999,2]
[345397614,1734233461411,-500.0,0.00013999,2]
[345397615,1734233461420,-500.0,0.00013999,2]
[345397616,1734233461431,-500.0,0.00013999,2]
[345397617,1734233461441,-500.0,0.00013999,2]
[345397618,1734233461451,-372.05,0.00013999,2]
[345397619,1734233461461,-924.79,0.00013999,2]
[345397620,1734233461471,-924.79,0.00013999,2]
[345397621,1734233461483,-924.79,0.00013999,2]
[345397622,1734233461493,-924.79,0.00013999,2]
[345397623,1734233461503,-924.79,0.00013999,2]
[345397624,1734233461514,-924.79,0.00013999,2]
[345397625,1734233461523,-1000.0,0.00013999,2]
[345397626,1734233461533,-924.79,0.00013999,2]
[345397627,1734233461543,-1000.0,0.00013999,2]
[345397628,1734233461554,-924.79,0.00013999,2]
[345397629,1734233461564,-1000.0,0.00013999,2]
[345397630,1734233461574,-924.79,0.00013999,2]
[345397631,1734233461584,-1000.0,0.00013999,2]
[345397632,1734233461593,-924.79,0.00013999,2]
[345397633,1734233461603,-1000.0,0.00013999,2]
[345397634,1734233461612,-924.79,0.00013999,2]
[345397635,1734233461623,-1000.0,0.00013999,2]
[345397636,1734233461632,-924.79,0.00013999,2]
[345397637,1734233461642,-1000.0,0.00013999,2]
[345397638,1734233461652,-924.79,0.00013999,2]
[345397639,1734233461663,-1000.0,0.00013999,2]
[345397640,1734233461674,-924.79,0.00013999,2]
[345397641,1734233461684,-1000.0,0.00013999,2]
[345397642,1734233461694,-924.79,0.00013999,2]
[345397643,1734233461704,-1000.0,0.00013999,2]
[345397644,1734233461713,-924.79,0.00013999,2]
[345397645,1734233461723,-1000.0,0.00013999,2]
[345397646,1734233461736,-924.79603016,0.00013999,2]
[345397647,1734233461746,-1000.0,0.00013999,2]
[345397648,1734233461755,-1000.0,0.00013999,2]
[345397649,1734233461764,-1000.0,0.00013999,2]
[345397650,1734233461774,-515.13792533,0.00013999,2]
[345397651,1734233461784,-500.0,0.00013999,2]
[345397652,1734233461794,-500.0,0.00013999,2]
[345397653,1734233461804,-500.0,0.00013999,2]
[345397654,1734233461815,-251.24055845,0.00013999,2]
[345397655,1734233461825,-500.0,0.00013999,2]
[345397656,1734233461835,-500.0,0.00013999,2]
[345397657,1734233461845,-500.0,0.00013999,2]
[345397658,1734233461855,-500.0,0.00013999,2]
[345397659,1734233461865,-500.0,0.00013999,2]
[345397660,1734233461875,-500.0,0.00013999,2]
[345397661,1734233461887,-500.0,0.00013999,2]
[345397662,1734233461897,-500.0,0.00013999,2]
[345397663,1734233461907,-555.29144718,0.00013999,2]
[345397664,1734233461917,-500.0,0.00013999,2]
[345397665,1734233461927,-423.11450145,0.00013999,2]
[345397666,1734233461936,-3339.33,0.00013999,2]
[345397667,1734233461946,-3339.33,0.00013999,2]
[345397668,1734233461956,-3339.33,0.00013999,2]
[345397669,1734233461966,-3339.05813256,0.00013999,2]
[345397670,1734233462317,-276.21555127,0.000139,2]
[345397671,1734233462327,-7500.0,0.00013977,2]
[345397672,1734233462337,-7500.0,0.00013977,2]
[345397673,1734233462347,-7500.0,0.00013978,2]
[345397674,1734233462358,-7500.0,0.00013978,2]
[345397675,1734233462367,-151.087976,0.00013978,2]
[345397676,1734233462377,-767.406297,0.00013978,2]
[345397677,1734233462387,-244.226634,0.00013978,2]
[345397678,1734233462397,-151.087976,0.00013978,2]
[345397679,1734233462406,-767.406297,0.00013978,2]
[345397680,1734233462415,-244.226634,0.00013978,2]
[345397681,1734233462425,-150.76433604,0.00013979,2]
[345397682,1734233462885,-151.087976,0.00013978,2]
[345397683,1734233462895,-767.406297,0.00013978,2]
[345397684,1734233462917,-151.087976,0.00013978,2]
[345397685,1734233462929,-289.77584601,0.00013978,2]
[345397686,1734233463099,-477.63045099,0.00013978,2]
[345397687,1734233463110,-244.226634,0.00013978,2]
[345397688,1734233463123,-244.226634,0.00013978,2]
[345397689,1734233463134,-285.09491053,0.00013979,2]
[345397690,1734233463148,-7064.14075343,0.00013979,2]
[345397691,1734233463161,-151.087976,0.00013979,2]
[345397692,1734233463174,-767.406297,0.00013979,2]
[345397693,1734233463185,-244.226634,0.00013979,2]
[345397694,1734233463196,-151.087976,0.00013979,2]
[345397695,1734233463207,-767.406297,0.00013979,2]
[345397696,1734233463219,-244.226634,0.00013979,2]
[345397697,1734233463232,-151.087976,0.00013979,2]
[345397698,1734233463243,-767.406297,0.00013979,2]
[345397699,1734233463255,-244.226634,0.00013979,2]
[345397700,1734233463266,-151.087976,0.00013979,2]
[345397701,1734233463277,-767.406297,0.00013979,2]
[345397702,1734233463288,-142.62425716,0.00013979,2]
[345397703,1734233463599,-101.60237684,0.00013979,2]
[345397704,1734233463610,-151.087976,0.00013979,2]
[345397705,1734233463621,-767.406297,0.00013979,2]
[345397706,1734233463631,-244.226634,0.00013979,2]
[345397707,1734233463642,-151.087976,0.00013979,2]
[345397708,1734233463652,-767.406297,0.00013979,2]
[345397709,1734233463663,-151.087976,0.00013979,2]
[345397710,1734233463674,-767.406297,0.00013979,2]
[345397711,1734233463684,-767.406297,0.00013979,2]
[345397712,1734233463695,-52.82252159,0.00013979,2]
[345397713,1734233463708,-714.58377541,0.00013979,2]
[345397714,1734233463719,-244.226634,0.00013979,2]
[345397715,1734233463731,-767.406297,0.00013979,2]
[345397716,1734233463741,-244.226634,0.00013979,2]
[345397717,1734233463752,-244.226634,0.00013979,2]
[345397718,1734233463763,-244.226634,0.00013979,2]
[345397719,1734233463773,-151.087976,0.00013979,2]
[345397720,1734233463783,-151.087976,0.00013979,2]
[345397721,1734233463793,-244.226634,0.00013979,2]
[345397722,1734233463803,-151.087976,0.00013979,2]
[345397723,1734233463813,-151.087976,0.0001398,2]
[345397724,1734233463823,-767.406297,0.0001398,2]
[345397725,1734233463833,-244.226634,0.0001398,2]
[345397726,1734233463844,-767.406297,0.0001398,2]
[345397727,1734233463855,-244.226634,0.0001398,2]
[345397728,1734233463865,-2656.56094904,0.00013987,2]
[345397729,1734233804821,150.0,0.0002,120]
[345397730,1734233989985,-250.0,0.00021,120]
[345397731,1734233990011,-1250.0,0.00021,120]
[345397735,1734234452108,-155.87,0.00010137,2]
[345397736,1734234452131,-299.01577619,0.00010237,2]
[345397737,1734234546089,-315.47901396,0.00010138,2]
[345397738,1734234546110,-224.00833354,0.00010138,2]
[345397739,1734234546132,-300.0,0.00010237,2]
[345397740,1734234546154,-969.0,0.00010238,2]
[345397741,1734234546175,-969.0,0.00010238,2]
[345397742,1734234546197,-969.0,0.00010238,2]
[345397743,1734234546219,-969.0,0.00010238,2]
[345397744,1734234546244,-863.21,0.00010714,2]
[345397745,1734234546266,-420.0,0.00011258,2]
[345397746,1734234546289,-693.788789,0.00012319,2]
[345397747,1734234579534,630.95802794,0.00012502,2]
[345397748,1734234583914,313.64,0.00010137,2]
[345397761,1734234632485,-1975.95740604,0.00012602,2]
[345397762,1734234632498,-14297.04259396,0.00012602,2]
[345397763,1734234632509,-250.0,0.00012602,2]
[345397764,1734234632520,-250.0,0.00012602,2]
[345397765,1734234632531,-585.34,0.00012623,2]
[345397766,1734234632544,-1893.6,0.00012633,2]
[345397767,1734234632556,-1000.0,0.00012643,2]
[345397768,1734234632567,-500.98,0.00012726,2]
[345397769,1734234632577,-250.0,0.00012823,2]
[345397770,1734234632587,-200.0,0.00012863,2]
[345397771,1734234632598,-1277.93,0.00012906,2]
[345397772,1734234632610,-457.35,0.00012937,2]
[345397773,1734234632621,-863.21,0.00012978,2]
[345397774,1734234632631,-153.0,0.00013024,2]
[345397775,1734234632643,-153.0,0.00013024,2]
[345397776,1734234632653,-153.0,0.00013024,2]
[345397777,1734234632664,-153.0,0.00013024,2]
[345397778,1734234632674,-153.0,0.00013024,2]
[345397779,1734234632684,-1416.21,0.00013059,2]
[345397780,1734234632694,-150.121512,0.00013098,3]
[345397781,1734234632704,-150.121512,0.00013098,2]
[345397782,1734234632714,-150.121512,0.00013198,2]
[345397783,1734234632724,-150.121512,0.00013198,3]
[345397784,1734234632733,-150.121512,0.00013298,3]
[345397785,1734234632744,-150.121512,0.00013298,2]
[345397786,1734234632753,-304.431,0.000133,2]
[345397787,1734234632763,-150.121512,0.00013398,2]
[345397788,1734234632774,-150.121512,0.00013398,3]
[345397789,1734234632785,-150.121512,0.00013498,3]
[345397790,1734234632800,-150.121512,0.00013498,2]
[345397791,1734234632810,-3845.0,0.00013583,2]
[345397792,1734234632819,-150.121512,0.00013598,2]
[345397793,1734234632830,-114.4319748,0.00013598,3]
[345397794,1734234632843,-35.6895372,0.00013598,3]
[345397795,1734234632853,-150.121512,0.00013698,3]
[345397796,1734234632863,-150.121512,0.00013698,2]
[345397797,1734234632873,-150.121512,0.00013798,2]
[345397798,1734234632883,-150.121512,0.00013798,3]
[345397799,1734234632892,-2020.57687,0.0001386,2]
[345397800,1734234632903,-156.602172,0.00013875,2]
[345397801,1734234632913,-500.0,0.00013875,2]
[345397802,1734234632922,-500.0,0.00013875,2]
[345397803,1734234632932,-500.0,0.00013875,2]
[345397804,1734234632941,-508.3294495,0.00013875,2]
[345397805,1734234632951,-500.0,0.00013875,2]
[345397806,1734234632961,-500.0,0.00013875,2]
[345397807,1734234632971,-500.0,0.00013875,2]
[345397808,1734234632981,-500.0,0.00013875,2]
[345397809,1734234632992,-500.0,0.00013875,2]
[345397810,1734234633002,-507.04059113,0.00013875,2]
[345397811,1734234633013,-500.0,0.00013875,2]
[345397812,1734234633023,-500.0,0.00013875,2]
[345397813,1734234633035,-224.00833353,0.00013876,2]
[345397814,1734234633051,-500.0,0.00013887,2]
[345397815,1734234633063,-150.121512,0.00013898,3]
[345397816,1734234633073,-150.121512,0.00013898,2]
[345397817,1734234633083,-2500.0,0.00013899,2]
[345397818,1734234633094,-153.14613336,0.00013899,2]
[345397819,1734234633104,-153.1461333,0.00013899,2]
[345397820,1734234633114,-153.1461333,0.00013899,2]
[345397821,1734234633125,-153.1461333,0.00013899,2]
[345397822,1734234633135,-153.1461333,0.000139,2]
[345397823,1734234633146,-153.1461333,0.000139,2]
[345397824,1734234633156,-153.1461333,0.000139,2]
[345397825,1734234633166,-1075.13295718,0.000139,2]
[345397826,1734234633176,-5800.0,0.000139,2]
[345397827,1734234633186,-198.70744235,0.000139,2]
[345397828,1734234633196,-2906.98715642,0.000139,2]
[345397829,1734234633206,-153.1461333,0.000139,2]
[345397830,1734234633217,-168.71133022,0.000139,2]
[345397831,1734234633228,-150.121512,0.00013948,2]
[345397832,1734234633238,-150.121512,0.00013948,3]
[345397833,1734234633249,-1379.258,0.00013951,2]
[345397834,1734234633259,-200.0,0.00013966,2]
[345397835,1734234633270,-200.0,0.00013968,2]
[345397836,1734234633281,-564.0,0.00013972,2]
[345397837,1734234633291,-817.0,0.00013972,2]
[345397838,1734234633305,-150.373,0.00013972,2]
[345397839,1734234633316,-500.0,0.00013973,2]
[345397840,1734234633326,-500.0,0.00013973,2]
[345397841,1734234633337,-200.0,0.00013975,2]
[345397842,1734234633347,-500.0,0.00013977,2]
[345397843,1734234633357,-179.16766527,0.00013977,2]
[345397844,1734234633368,-500.0,0.00013977,2]
[345397845,1734234633379,-512.42576943,0.00013977,2]
[345397846,1734234633389,-500.0,0.00013977,2]
[345397847,1734234633399,-507.19224329,0.00013977,2]
[345397848,1734234633410,-500.0,0.00013977,2]
[345397849,1734234633421,-500.0,0.00013977,2]
[345397850,1734234633432,-500.0,0.00013977,2]
[345397851,1734234633443,-500.0,0.00013977,2]
[345397852,1734234633454,-500.0,0.00013977,2]
[345397853,1734234633464,-500.0,0.00013977,2]
[345397854,1734234633474,-505.89933738,0.00013977,2]
[345397855,1734234633484,-500.0,0.00013977,2]
[345397856,1734234633494,-500.0,0.00013977,2]
[345397857,1734234633504,-500.0,0.00013977,2]
[345397858,1734234633514,-500.0,0.00013977,2]
[345397859,1734234633524,-500.0,0.00013978,2]
[345397860,1734234633534,-500.0,0.00013978,2]
[345397861,1734234633545,-500.0,0.00013978,2]
[345397862,1734234633555,-515.58972245,0.00013979,2]
[345397863,1734234633565,-1530.54,0.00013988,2]
[345397864,1734234633576,-500.0,0.00013988,2]
[345397865,1734234633587,-500.0,0.00013988,2]
[345397866,1734234633597,-500.0,0.00013988,2]
[345397867,1734234633607,-500.0,0.00013988,2]
[345397868,1734234633617,-216.9307388,0.00013989,2]
[345397869,1734234633627,-216.9307388,0.0001399,2]
[345397870,1734234633637,-216.9307388,0.0001399,2]
[345397871,1734234633647,-500.0,0.00013994,2]
[345397872,1734234633657,-1602.34,0.00013994,2]
[345397873,1734234633667,-500.0,0.00013994,2]
[345397874,1734234633677,-537.07514254,0.00013994,2]
[345397875,1734234633687,-500.0,0.00013994,2]
[345397876,1734234633697,-500.0,0.00013994,2]
[345397877,1734234633707,-500.0,0.00013994,2]
[345397878,1734234633717,-500.0,0.00013994,2]
[345397879,1734234633728,-180.95213508,0.00013998,2]
[345397880,1734234633738,-1530.54,0.00013998,2]
[345397881,1734234633748,-1530.54,0.00013998,2]
[345397882,1734234633758,-500.0,0.00013998,2]
[345397883,1734234633768,-500.0,0.00013998,2]
[345397884,1734234633778,-500.0,0.00013998,2]
[345397885,1734234633788,-500.0,0.00013998,2]
[345397886,1734234633800,-410.23768126,0.00013998,2]
[345397887,1734234633811,-500.0,0.00013998,2]
[345397888,1734234633821,-500.0,0.00013998,2]
[345397889,1734234633832,-500.0,0.00013998,2]
[345397890,1734234633842,-241.18,0.00013998,2]
[345397891,1734234633852,-500.0,0.00013998,2]
[345397892,1734234633862,-500.0,0.00013998,2]
[345397893,1734234633872,-500.0,0.00013998,2]
[345397894,1734234633882,-500.0,0.00013998,2]
[345397895,1734234633892,-500.0,0.00013998,2]
[345397896,1734234633902,-500.0,0.00013998,2]
[345397897,1734234633917,-500.0,0.00013998,2]
[345397898,1734234633928,-152.093937,0.00013998,2]
[345397899,1734234633938,-150.691116,0.00013998,2]
[345397900,1734234633948,-150.883906,0.00013998,2]
[345397901,1734234633958,-500.0,0.00013998,2]
[345397902,1734234633968,-500.0,0.00013998,2]
[345397903,1734234633978,-500.0,0.00013998,2]
[345397904,1734234633988,-1602.34,0.00013998,2]
[345397905,1734234633998,-1602.34,0.00013998,2]
[345397906,1734234634008,-1371.01,0.00013998,2]
[345397907,1734234634020,-1371.01,0.00013998,2]
[345397908,1734234634030,-1371.01,0.00013998,2]
[345397909,1734234634040,-500.0,0.00013998,2]
[345397910,1734234634053,-518.82687045,0.00013998,2]
[345397911,1734234634063,-207.23,0.00013998,2]
[345397912,1734234634073,-500.0,0.00013998,2]
[345397913,1734234634083,-310.42011891,0.00013998,2]
[345397914,1734234634094,-500.0,0.00013998,2]
[345397915,1734234634104,-500.0,0.00013998,2]
[345397916,1734234634114,-500.0,0.00013998,2]
[345397917,1734234634124,-500.0,0.00013998,2]
[345397918,1734234634134,-500.0,0.00013998,2]
[345397919,1734234634144,-500.0,0.00013998,2]
[345397920,1734234634154,-500.0,0.00013998,2]
[345397921,1734234634164,-500.0,0.00013998,2]
[345397922,1734234634175,-500.0,0.00013998,2]
[345397923,1734234634186,-500.0,0.00013998,2]
[345397924,1734234634199,-500.0,0.00013998,2]
[345397925,1734234634210,-500.0,0.00013998,2]
[345397926,1734234634220,-500.0,0.00013998,2]
[345397927,1734234634230,-500.0,0.00013998,2]
[345397928,1734234634241,-500.0,0.00013998,2]
[345397929,1734234634251,-500.0,0.00013998,2]
[345397930,1734234634261,-500.0,0.00013998,2]
[345397931,1734234634271,-1425.31,0.00013998,2]
[345397932,1734234634282,-1425.31,0.00013998,2]
[345397933,1734234634292,-1425.31,0.00013998,2]
[345397934,1734234634302,-2196.79,0.00013998,2]
[345397935,1734234634313,-2196.79,0.00013998,2]
[345397936,1734234634324,-2196.79,0.00013998,2]
[345397937,1734234634334,-256.54673602,0.00013998,2]
[345397938,1734234634345,-500.0,0.00013998,2]